bitfinex/quotes_SOLUSD_20250217
["timestamp","ask_amount","ask_price","bid_price","bid_amount"]
[1739817159034,19.75119502,177.23,177.16,18.90539502]
[1739817159248,5.6427,177.22,177.17,18.90539502]
[1739817159558,5.6427,177.22,177.16,18.90539502]
[1739817160648,24.54809502,177.22,177.16,18.90539502]
[1739817160929,19.75119502,177.21,177.15,18.90539502]
[1739817161235,18.90539502,177.21,177.15,18.90539502]
[1739817161747,18.90539502,177.2,177.14,18.90539502]
[1739817162049,18.90539502,177.17,177.11,25.05269502]
[1739817162636,18.90539502,177.18,177.12,18.90539502]
[1739817163050,18.90539502,177.17,177.11,18.90539502]
[1739817164140,18.90539502,177.16,177.1,18.90539502]
[1739817164949,18.90539502,177.16,177.09,89.5]
[1739817164950,18.90539502,177.13,177.09,89.5]
[1739817165439,38.90539502,177.13,177.09,89.5]
[1739817165634,18.90539502,177.15,177.09,108.40539502]
[1739817165839,5.6448,177.16,177.11,18.90539502]
[1739817166232,24.55019502,177.16,177.09,108.40539502]
[1739817166635,19.75119502,177.15,177.09,89.5]
[1739817166834,18.90539502,177.13,177.09,89.5]
[1739817167056,5.6458,177.12,177.09,89.5]
[1739817167228,18.90539502,177.11,177.05,18.90539502]
[1739817167434,18.90539502,177.1,177.04,18.90539502]
[1739817167631,18.90539502,177.09,177.03,18.90539502]
[1739817168235,18.90539502,177.1,177.03,18.90539502]
[1739817168431,24.55209502,177.1,177.04,18.90539502]
[1739817169149,5.6459,177.12,177.07,18.90539502]
[1739817169346,5.6459,177.12,177.06,18.90539502]
[1739817170157,24.55129502,177.12,177.06,18.90539502]
[1739817170353,19.75119502,177.11,177.05,18.90539502]
[1739817170538,18.90539502,177.1,177.03,18.90539502]
[1739817170735,19.7606,177.12,177.0,0.84698254]
[1739817170736,18.90539502,177.08,177.01,18.90539502]
[1739817170958,18.90539502,177.07,177.01,18.90539502]
[1739817171152,18.90539502,177.08,177.01,18.90539502]
[1739817171957,25.39889502,177.07,177.01,18.90539502]
[1739817172161,25.39889502,177.07,177.0,18.90539502]
[1739817172735,18.90539502,177.06,177.0,18.90539502]
[1739817173047,18.90539502,177.05,176.99,108.42539502]
[1739817173247,18.90539502,177.05,176.99,114.07529502]
[1739817173575,18.90539502,177.03,176.99,89.52]
[1739817174252,5.649,177.02,176.99,89.52]
[1739817174455,18.90539502,177.01,176.97,0.03]
[1739817174853,18.90539502,176.98,176.97,0.03]
[1739817176247,24.55569502,176.98,176.97,0.03]
[1739817176846,18.90539502,176.99,176.97,0.03]
[1739817177061,19.75119502,176.98,176.97,0.03]
[1739817178345,25.40149502,176.98,176.97,0.0001]
[1739817178653,20.0,176.95,176.93,0.03]
[1739817178841,19.75119502,176.94,176.93,0.03]
[1739817180275,25.40199502,176.97,176.93,0.03]
[1739817180485,5.6508,176.97,176.93,0.03]
[1739817180776,38.90539502,176.94,176.93,0.03]
[1739817181266,18.90539502,176.94,176.93,0.03]
[1739817181438,39.75119502,176.94,176.93,0.03]
[1739817182286,64.30819004,176.94,176.81,7.31431071]
[1739817182488,18.90539502,176.86,176.8,18.90539502]
[1739817182788,18.90539502,176.86,176.79,0.84798737]
[1739817182789,18.90539502,176.85,176.79,18.90539502]
[1739817183099,0.8458,176.89,176.81,18.90539502]
[1739817183100,18.90539502,176.87,176.81,18.90539502]
[1739817183265,0.8458,176.86,176.8,18.90539502]
[1739817183583,19.75119502,176.89,176.82,18.90539502]
[1739817183804,0.8458,176.89,176.85,18.90539502]
[1739817183977,0.8458,176.9,176.87,18.90539502]
[1739817184280,0.8458,176.93,176.88,18.90539502]
[1739817184581,0.8458,176.97,176.92,30.39620334]
[1739817184784,0.8458,176.98,176.87,13.13345085]
[1739817184995,31.24200334,176.98,176.92,30.39620334]
[1739817185489,30.39620334,176.99,176.93,30.39620334]
[1739817185661,36.89190334,177.0,176.93,30.39620334]
[1739817185861,36.89190334,177.0,176.95,30.39620334]
[1739817185862,6.4957,177.0,176.95,30.39620334]
[1739817186062,30.39620334,176.96,176.89,30.39620334]
[1739817186258,36.04860334,176.92,176.86,30.39620334]
[1739817186475,30.39620334,176.9,176.83,96.0039]
[1739817186766,30.39620334,176.9,176.83,126.40010334]
[1739817187087,30.39620334,176.92,176.86,30.39620334]
[1739817187467,50.39620334,176.93,176.86,30.39620334]
[1739817187663,30.39620334,176.94,176.88,30.39620334]
[1739817187871,36.04710334,176.96,176.9,30.39620334]
[1739817188069,30.39620334,176.94,176.87,30.39620334]
[1739817188567,51.24200334,176.93,176.86,30.39620334]
[1739817188879,30.39620334,176.91,176.85,30.39620334]
[1739817189397,20.0,176.92,176.87,30.39620334]
[1739817189697,51.24200334,176.92,176.85,30.39620334]
[1739817189870,30.39620334,176.91,176.85,30.39620334]
[1739817190072,31.24200334,176.9,176.84,30.39620334]
[1739817190260,31.24200334,176.91,176.85,30.39620334]
[1739817190460,30.39620334,176.94,176.88,30.39620334]
[1739817190667,36.04740334,176.96,176.9,30.39620334]
[1739817190860,0.8458,176.95,176.9,30.39620334]
[1739817191167,36.04740334,176.96,176.9,30.39620334]
[1739817191381,2.403,176.98,176.92,30.39620334]
[1739817191382,38.44980334,176.98,176.92,30.39620334]
[1739817191585,36.04620334,176.99,176.93,30.39620334]
[1739817192409,0.8458,176.98,176.86,14.2595936]
[1739817192569,30.39620334,176.96,176.9,30.39620334]
[1739817192767,36.04680334,176.97,176.91,30.39620334]
[1739817192981,0.063,177.0,176.88,0.84774255]
[1739817192982,56.89210334,176.99,176.93,30.39620334]
[1739817193269,30.39620334,176.97,176.91,30.39620334]
[1739817193468,56.89210334,176.99,176.92,30.39620334]
[1739817193770,20.0,176.99,176.94,30.39620334]
[1739817194086,56.89210334,176.99,176.93,30.39620334]
[1739817194262,25.6501,176.99,176.93,30.39620334]
[1739817194466,56.04630334,176.99,176.93,30.39620334]
[1739817194991,31.24200334,176.98,176.92,30.39620334]
[1739817195190,30.39620334,176.98,176.92,30.39620334]
[1739817195368,31.24200334,176.98,176.92,30.39620334]
[1739817195569,31.24200334,176.97,176.9,30.39620334]
[1739817195764,30.39620334,176.95,176.88,30.39620334]
[1739817195986,30.39620334,176.93,176.86,30.39620334]
[1739817196177,30.39620334,176.95,176.89,30.39620334]
[1739817196478,30.39620334,176.93,176.81,15.7516]
[1739817196674,30.39620334,176.94,176.88,30.39620334]
[1739817196875,20.0,176.93,176.89,30.39620334]
[1739817197400,20.0,176.93,176.9,30.39620334]
[1739817197992,36.04680334,176.97,176.91,30.39620334]
[1739817198197,5.6506,176.97,176.92,30.39620334]
[1739817198394,5.6503,176.98,176.94,30.39620334]
[1739817198581,5.7127,177.0,176.95,30.39620334]
[1739817198786,36.10890334,177.0,176.94,30.39620334]
[1739817198982,5.7127,177.0,176.94,30.39620334]
[1739817199297,5.7127,177.0,176.92,5.6519]
[1739817199298,0.063,177.0,176.96,30.39620334]
[1739817199478,0.063,177.0,176.94,30.39620334]
[1739817199675,0.063,177.0,176.95,30.39620334]
[1739817199895,0.063,177.0,176.96,30.39620334]
[1739817200196,0.063,177.0,176.97,30.39620334]
[1739817200500,0.063,177.0,176.95,30.39620334]
[1739817200879,0.063,177.0,176.94,30.39620334]
[1739817201085,0.063,177.0,176.95,30.39620334]
[1739817201280,0.063,177.0,176.96,30.39620334]
[1739817201503,0.063,177.0,176.97,30.39620334]
[1739817202191,0.063,177.0,176.98,30.39620334]
[1739817202982,0.063,177.0,176.96,14.25919513]
[1739817202983,0.063,177.0,176.99,30.39620334]
[1739817203182,0.063,177.0,176.98,30.39620334]
[1739817203794,0.063,177.0,176.97,30.39620334]
[1739817203986,0.063,177.0,176.93,0.84734386]
[1739817203987,0.063,177.0,176.96,30.39620334]
[1739817204291,0.063,177.0,176.99,30.39620334]
[1739817204714,0.063,177.0,176.99,36.04620334]
[1739817204989,0.063,177.0,176.98,30.39620334]
[1739817205379,0.063,177.0,176.99,30.39620334]
[1739817206386,0.063,177.0,176.99,44.65538693]
[1739817206697,0.063,177.0,176.99,51.91238693]
[1739817207397,0.063,177.0,176.99,58.04668693]
[1739817207598,0.063,177.12,177.0,13.41184853]
[1739817207793,0.063,177.12,177.08,30.39620334]
[1739817208097,0.063,177.12,177.11,30.39620334]
[1739817209281,0.063,177.12,177.11,49.45425187]
[1739817209477,0.063,177.12,177.11,79.85045521]
[1739817209796,0.063,177.12,177.11,43.80805187]
[1739817210298,0.063,177.12,177.11,44.6546291]
[1739817210480,0.063,177.12,177.11,43.80805187]
[1739817211175,0.063,177.12,177.11,30.39620334]
[1739817211396,0.063,177.12,177.08,7.7413]
[1739817211397,0.063,177.12,177.08,8.58802858]
[1739817211588,0.063,177.12,177.09,30.39620334]
[1739817211783,0.063,177.12,177.08,30.39620334]
[1739817211983,30.45920334,177.12,177.06,30.39620334]
[1739817212497,30.45920334,177.12,177.04,20.41308934]
[1739817212702,36.04240334,177.11,177.05,30.39620334]
[1739817212904,5.6462,177.11,177.06,30.39620334]
[1739817213098,36.04240334,177.11,177.05,30.39620334]
[1739817213408,30.39620334,177.08,177.02,30.39620334]
[1739817213784,31.24200334,177.07,177.01,30.39620334]
[1739817213979,30.39620334,177.07,177.01,30.39620334]
[1739817214184,50.39620334,177.08,177.02,30.39620334]
[1739817214384,20.0,177.08,177.02,30.39620334]
[1739817214903,5.6465,177.11,177.05,30.39620334]
[1739817215082,36.04270334,177.11,177.05,30.39620334]
[1739817215483,36.88850334,177.11,177.05,30.39620334]
[1739817215902,30.39620334,177.1,177.04,30.39620334]
[1739817216104,5.6468,177.09,177.04,30.39620334]
[1739817216310,36.04270334,177.1,177.04,30.39620334]
[1739817217581,5.6462,177.11,177.06,30.39620334]
[1739817217787,5.7089,177.12,177.07,30.39620334]
[1739817217987,5.6465,177.1,177.02,13.41184853]
[1739817218187,36.04270334,177.1,177.04,30.39620334]
[1739817219185,30.39620334,177.11,177.05,30.39620334]
[1739817219390,36.10540334,177.12,177.06,30.39620334]
[1739817220608,0.063,177.12,177.08,30.39620334]
[1739817221500,0.063,177.12,177.11,30.39620334]
[1739817222986,0.063,177.12,177.11,43.80805187]
[1739817223204,0.063,177.12,177.11,74.20425521]
[1739817223524,0.063,177.12,177.11,49.45425187]
[1739817224021,0.063,177.15,177.12,13.41184853]
[1739817224204,0.063,177.15,177.14,43.80805187]
[1739817226412,0.063,177.15,177.14,30.39620334]
[1739817226618,0.063,177.15,176.83,3.1085917]
[1739817226619,0.4131,177.1,176.83,3.1085917]
[1739817226819,30.39620334,176.94,176.84,30.39620334]
[1739817227116,1.06013385,176.93,176.84,312.0]
[1739817227287,30.39620334,176.92,176.84,312.0]
[1739817227488,20.0,177.0,176.85,17.59721682]
[1739817227707,30.39620334,176.94,176.85,47.99342016]
[1739817227909,1.05995091,176.99,176.86,0.42750588]
[1739817228216,30.39620334,176.97,176.87,30.39620334]
[1739817228411,30.39620334,176.95,176.88,13.41184853]
[1739817229116,30.39620334,176.97,176.88,13.41184853]
[1739817229498,30.39620334,176.95,176.88,13.41184853]
[1739817230419,30.39620334,176.95,176.9,312.0]
[1739817231406,30.39620334,176.91,176.82,30.39620334]
[1739817231613,30.39620334,176.89,176.81,30.39620334]
[1739817231906,30.39620334,176.89,176.83,13.41184853]
[1739817232501,30.39620334,176.89,176.82,13.41184853]
[1739817234122,1.06000217,176.93,176.82,43.80805187]
[1739817234300,1.06000217,176.93,176.84,13.41184853]
[1739817234494,30.39620334,176.9,176.84,13.41184853]
[1739817234707,30.39620334,176.89,176.82,43.80805187]
[1739817234910,30.39620334,176.89,176.82,13.41184853]
[1739817235526,30.39620334,176.9,176.84,13.41184853]
[1739817236448,30.39620334,176.9,176.84,30.39620334]
[1739817236620,30.39620334,176.9,176.84,43.80805187]
[1739817236931,30.39620334,176.92,176.86,30.39620334]
[1739817237103,30.39620334,176.93,176.87,30.39620334]
[1739817237536,30.39620334,176.92,176.86,13.41184853]
[1739817237715,30.39620334,176.92,176.86,43.80805187]
[1739817238105,30.45920334,176.92,176.86,43.80805187]
[1739817238425,30.39620334,176.9,176.84,30.39620334]
[1739817238802,30.39620334,176.91,176.85,30.39620334]
[1739817239002,30.39620334,176.91,176.86,13.41184853]
[1739817239317,30.45920334,176.92,176.86,49.46195187]
[1739817239516,30.39620334,176.91,176.86,13.41184853]
[1739817239919,30.39620334,176.91,176.86,19.06584853]
[1739817240214,30.45920334,176.92,176.86,49.46205187]
[1739817240401,0.063,176.92,176.91,30.39620334]
[1739817240807,0.063,176.92,176.9,30.39620334]
[1739817241223,0.063,176.92,176.91,36.04870334]
[1739817241422,0.063,176.92,176.91,49.88751175]
[1739817242306,0.0001,176.92,176.91,49.88751175]
[1739817244024,0.0001,176.92,176.91,80.28371509]
[1739817244218,0.0001,176.92,176.91,49.88751175]
[1739817245230,30.39620334,177.06,176.94,20.0]
[1739817245406,30.39620334,177.06,177.01,5.6493]
[1739817245728,30.39620334,177.05,177.01,5.6493]
[1739817245925,0.07867987,177.05,177.01,5.6493]
[1739817246332,0.07867987,177.05,177.01,36.04550334]
[1739817246517,0.07867987,177.05,177.01,5.6493]
[1739817247029,0.07867987,177.05,177.02,30.39620334]
[1739817247231,0.07867987,177.05,177.01,5.6493]
[1739817247413,0.07867987,177.05,177.03,5.6487]
[1739817247613,0.07867987,177.05,177.04,30.39620334]
[1739817248340,0.07867987,177.05,177.04,43.80805187]
[1739817249335,7.987e-05,177.05,177.04,44.23338311]
[1739817249535,7.987e-05,177.05,177.04,49.88178311]
[1739817252430,7.986e-05,177.05,177.04,49.88178311]
[1739817252627,7.986e-05,177.1,177.05,13.41184853]
[1739817252935,7.986e-05,177.15,177.09,43.80805187]
[1739817253140,7.986e-05,177.15,177.13,30.39620334]
[1739817253341,7.986e-05,177.15,177.12,30.39620334]
[1739817253835,7.986e-05,177.15,177.13,30.39620334]
[1739817254021,7.986e-05,177.15,177.14,30.39620334]
[1739817254341,7.986e-05,177.15,177.14,43.80805187]
[1739817255427,7.986e-05,177.15,177.14,49.45325187]
[1739817256241,7.986e-05,177.18,177.15,13.41184853]
[1739817256536,7.986e-05,177.18,177.17,30.39620334]
[1739817257041,7.986e-05,177.18,177.17,43.80805187]
[1739817257243,7.986e-05,177.18,177.17,44.23170088]
[1739817257647,7.986e-05,177.18,177.17,49.87590088]
[1739817257841,7.986e-05,177.18,177.17,49.45225187]
[1739817260539,7.986e-05,177.18,177.17,5.6442]
[1739817261552,30.3962832,177.18,177.12,36.04200334]
[1739817262328,30.39620334,177.17,177.12,5.6458]
[1739817262529,7.986e-05,177.18,177.12,5.6458]
[1739817262851,7.986e-05,177.18,177.15,30.39620334]
[1739817263552,7.986e-05,177.18,177.13,43.80805187]
[1739817264030,30.3962832,177.18,177.13,5.6455]
[1739817264230,7.986e-05,177.18,177.13,36.04170334]
[1739817264949,7.986e-05,177.18,177.17,0.03]
[1739817265138,7.986e-05,177.18,177.17,30.42620334]
[1739817265446,7.986e-05,177.18,177.17,43.83805187]
[1739817266351,7.986e-05,177.18,177.17,49.48225187]
[1739817269637,7.986e-05,177.18,177.17,0.03]
[1739817269837,30.3962832,177.18,177.17,0.03]
[1739817270954,30.3962832,177.18,176.75,17.59721682]
[1739817270955,17.3331,176.96,176.75,17.59721682]
[1739817271150,30.39620334,176.94,176.75,17.59721682]
[1739817271344,30.39620334,176.84,176.76,30.39620334]
[1739817271541,1.06060502,176.93,176.78,30.39620334]
[1739817271542,30.39620334,176.86,176.78,30.39620334]
[1739817271737,1.06035379,176.85,176.78,30.39620334]
[1739817271938,30.39620334,176.9,176.8,30.39620334]
[1739817272251,1.7916511,176.93,176.84,30.39620334]
[1739817272252,1.06012024,176.93,176.84,30.39620334]
[1739817272454,30.39620334,176.92,176.84,342.39620334]
[1739817272659,30.39620334,176.92,176.72,20.6239]
[1739817272660,30.39620334,176.86,176.78,30.39620334]
[1739817272829,20.0,176.9,176.8,30.39620334]
[1739817273034,31.45636606,176.89,176.8,30.39620334]
[1739817273465,30.39620334,176.87,176.8,30.39620334]
[1739817273837,30.39620334,176.87,176.76,20.0]
[1739817274039,30.39620334,176.84,176.76,30.39620334]
[1739817274452,30.39620334,176.85,176.77,30.39620334]
[1739817274651,49.4692467,176.84,176.77,62.88109523]
[1739817275156,49.4692467,176.84,176.73,5.6881]
[1739817275157,49.4692467,176.88,176.8,49.4692467]
[1739817275363,50.52952014,176.87,176.8,49.4692467]
[1739817275737,1.06025357,176.93,176.84,49.4692467]
[1739817275943,49.4692467,176.9,176.83,49.4692467]
[1739817276156,50.52935248,176.89,176.82,49.4692467]
[1739817277161,49.4692467,176.89,176.82,49.4692467]
[1739817277657,49.4692467,176.89,176.83,49.4692467]
[1739817278159,49.4692467,176.91,176.84,49.4692467]
[1739817278459,49.4692467,176.92,176.86,49.4692467]
[1739817278665,1.05998655,176.91,176.86,49.4692467]
[1739817279154,49.4692467,176.92,176.85,49.4692467]
[1739817279339,49.4692467,176.92,176.86,312.0]
[1739817279953,49.5322467,176.93,176.87,49.4692467]
[1739817280262,0.063,176.93,176.87,49.4692467]
[1739817280457,0.063,176.93,176.88,49.4692467]
[1739817280640,0.063,176.93,176.87,49.4692467]
[1739817280841,0.063,176.93,176.88,49.4692467]
[1739817281042,49.5322467,176.93,176.87,49.4692467]
[1739817281453,0.063,176.93,176.88,49.4692467]
[1739817281653,0.063,176.93,176.91,49.4692467]
[1739817281861,0.063,176.93,176.92,49.4692467]
[1739817282367,0.063,176.93,176.9,49.4692467]
[1739817282739,0.063,176.93,176.92,49.4692467]
[1739817282942,0.063,176.93,176.92,62.88109523]
[1739817283566,0.063,176.93,176.92,68.53329523]
[1739817284567,0.063,176.93,176.92,380.53329523]
[1739817285471,49.4692467,177.03,176.93,13.41184853]
[1739817285771,49.4692467,177.04,176.98,49.4692467]
[1739817285975,49.4692467,177.03,176.97,49.4692467]
[1739817286872,49.4692467,177.04,176.98,49.4692467]
[1739817287068,1.05920053,177.09,177.0,49.4692467]
[1739817287266,49.4692467,177.07,177.01,49.4692467]
[1739817288577,49.4692467,177.08,177.02,49.4692467]
[1739817288871,50.52821987,177.08,177.01,49.4692467]
[1739817289051,49.4692467,177.08,177.02,49.4692467]
[1739817289561,49.4692467,177.07,177.01,49.4692467]
[1739817289962,49.4692467,177.06,176.99,69.2442467]
[1739817290160,49.4692467,177.02,176.99,5.65]
[1739817290574,49.4692467,177.03,176.99,5.65]
[1739817290950,49.4692467,177.03,176.97,19.06244853]
[1739817291149,49.4692467,177.04,176.97,68.53169523]
[1739817291353,49.4692467,177.05,176.99,49.4692467]
[1739817291781,49.4692467,177.06,176.99,49.4692467]
[1739817292074,50.5284356,177.05,176.98,49.4692467]
[1739817292453,49.4692467,177.04,176.98,49.4692467]
[1739817293251,49.4692467,177.04,176.99,5.65]
[1739817293467,49.4692467,177.05,176.99,5.65]
[1739817293673,49.4692467,177.03,176.99,5.65]
[1739817293864,49.4692467,177.01,176.94,69.2496467]
[1739817294169,49.4692467,177.05,176.98,49.4692467]
[1739817294371,1.05924667,177.04,176.98,49.4692467]
[1739817294668,1.05924667,177.04,176.97,49.4692467]
[1739817294879,50.52849337,177.04,176.96,49.4692467]
[1739817295259,50.52849337,177.04,176.97,69.2464467]
[1739817295679,50.52849337,177.04,176.97,19.7772]
[1739817296371,50.52849337,177.04,176.97,69.2464467]
[1739817296679,31.4335741,177.04,176.97,50.15152743]
[1739817296881,1.05924667,177.04,176.97,50.15152743]
[1739817297076,30.37432743,177.06,176.99,30.37432743]
[1739817297382,31.49652399,177.07,177.0,5.6497]
[1739817297567,30.37432743,177.06,177.0,5.6497]
[1739817297974,0.063,177.07,177.02,30.37432743]
[1739817298359,0.063,177.07,177.01,30.37432743]
[1739817298584,0.063,177.07,177.02,30.37432743]
[1739817298772,30.37432743,177.06,177.0,50.14822743]
[1739817298979,30.37432743,177.04,177.0,5.6497]
[1739817299174,30.37432743,177.02,177.0,5.6497]
[1739817299360,30.37432743,177.02,176.97,19.7768]
[1739817299560,30.37432743,177.06,176.99,30.37432743]
[1739817299869,30.43732743,177.07,177.0,30.37432743]
[1739817300073,30.43732743,177.07,177.01,30.37432743]
[1739817300461,0.063,177.07,177.01,30.37432743]
[1739817301064,0.063,177.07,177.03,30.37432743]
[1739817301466,0.063,177.07,177.04,5.6484]
[1739817301668,30.37432743,177.06,177.01,5.6493]
[1739817301970,30.37432743,177.05,177.01,5.6493]
[1739817302302,30.37432743,177.02,176.99,5.65]
[1739817302890,30.37432743,177.0,176.94,5.6516]
[1739817303099,30.37432743,177.03,176.96,30.37432743]
[1739817303366,30.37432743,177.04,176.97,30.37432743]
[1739817303583,31.43352695,177.03,176.98,5.6503]
[1739817303985,30.37432743,177.02,176.98,5.6503]
[1739817304189,30.37432743,177.04,176.98,5.6503]
[1739817304484,31.4336336,177.06,176.99,30.37432743]
[1739817305172,0.063,177.07,177.01,30.37432743]
[1739817305565,0.063,177.07,177.02,30.37432743]
[1739817305886,0.063,177.07,177.03,5.6487]
[1739817308968,0.063,177.07,177.03,36.02302743]
[1739817309169,0.063,177.07,177.04,30.37432743]
[1739817309585,0.063,177.07,177.05,5.6481]
[1739817309988,0.3831,176.96,176.73,0.03]
[1739817310167,60.74865486,176.76,176.73,0.03]
[1739817310582,30.37432743,176.76,176.73,0.03]
[1739817310983,60.74865486,176.76,176.73,0.03]
[1739817311474,20.0,176.74,176.73,0.03]
[1739817311784,51.43566607,176.74,176.73,0.03]
[1739817312170,51.43566607,176.74,176.58,35.14979455]
[1739817312171,57.09386607,176.74,176.58,35.14979455]
[1739817312371,30.37432743,176.67,176.6,30.37432743]
[1739817312586,50.63170189,176.66,176.59,49.57018958]
[1739817312792,49.57018958,176.64,176.58,35.14979455]
[1739817313088,49.57018958,176.62,176.58,34.64979455]
[1739817313293,49.57018958,176.63,176.58,34.64979455]
[1739817313505,49.57018958,176.65,176.58,84.21998413]
[1739817313664,49.57018958,176.63,176.58,34.64979455]
[1739817313866,1.06179404,176.62,176.58,34.64979455]
[1739817314067,50.63198362,176.62,176.58,34.64979455]
[1739817314683,49.57018958,176.61,176.58,34.67979455]
[1739817314887,1.06193745,176.6,176.58,0.03]
[1739817315791,49.57018958,176.65,176.59,49.57018958]
[1739817316086,1.06173453,176.64,176.59,49.57018958]
[1739817316273,50.63192411,176.64,176.58,49.60018958]
[1739817316465,50.63192411,176.64,176.58,0.03]
[1739817316682,1.06173453,176.64,176.58,49.60018958]
[1739817316985,50.63192411,176.64,176.58,49.60018958]
[1739817317172,1.06173453,176.64,176.58,49.60018958]
[1739817317364,50.63193259,176.68,176.61,49.57018958]
[1739817317569,1.06174301,176.68,176.62,49.57018958]
[1739817317794,1.06139122,176.75,176.64,49.57018958]
[1739817318085,1.06139122,176.75,176.6,13.41184853]
[1739817318277,1.06139122,176.75,176.65,49.57018958]
[1739817318472,49.57018958,176.72,176.65,49.57018958]
[1739817318675,50.63142387,176.71,176.64,49.57018958]
[1739817318894,49.57018958,176.69,176.63,49.57018958]
[1739817319194,1.06137618,176.68,176.63,49.57018958]
[1739817319396,1.06137251,176.69,176.64,49.57018958]
[1739817319774,1.06137251,176.69,176.63,49.57018958]
[1739817319972,49.57018958,176.71,176.64,49.57018958]
[1739817320183,1.06130905,176.7,176.65,49.57018958]
[1739817321288,1.06127591,176.69,176.6,5.6622]
[1739817321482,49.57018958,176.68,176.61,49.57018958]
[1739817321682,49.57018958,176.69,176.62,49.57018958]
[1739817321879,49.57018958,176.69,176.62,55.23198958]
[1739817322093,1.06133526,176.68,176.62,5.6618]
[1739817322397,49.57018958,176.7,176.63,49.57018958]
[1739817322892,49.57018958,176.68,176.61,55.23228958]
[1739817323193,50.63153908,176.67,176.61,5.6621]
[1739817323490,1.0613495,176.67,176.61,55.23228958]
[1739817323692,49.57018958,176.71,176.61,55.23228958]
[1739817323872,1.06127768,176.75,176.67,49.57018958]
[1739817324276,50.63146726,176.75,176.65,49.57018958]
[1739817324478,49.57018958,176.73,176.64,19.8141]
[1739817324685,1.06121776,176.72,176.65,49.57018958]
[1739817324990,49.57018958,176.75,176.67,49.57018958]
[1739817325183,1.06105764,176.74,176.67,49.57018958]
[1739817325585,49.57018958,176.73,176.65,49.57018958]
[1739817325976,1.06111504,176.72,176.66,5.6605]
[1739817327097,49.57018958,176.73,176.66,5.6605]
[1739817327499,49.57018958,176.73,176.66,19.8119]
[1739817327694,0.063,176.72,176.67,49.57018958]
[1739817328276,0.063,176.72,176.68,5.6599]
[1739817329093,0.063,176.72,176.68,69.37988958]
[1739817329299,0.063,176.72,176.69,49.57018958]
[1739817330082,0.063,176.72,176.7,5.6593]
[1739817331294,49.57018958,176.71,176.63,28.3062]
[1739817331473,49.57018958,176.7,176.65,14.1521]
[1739817331879,49.63318958,176.72,176.65,14.1521]
[1739817332176,1.06117783,176.71,176.65,14.1521]
[1739817332390,49.63318958,176.72,176.65,69.38318958]
[1739817334614,30.54630578,176.72,176.65,50.29630578]
[1739817335396,1.06117253,176.71,176.65,50.29630578]
[1739817336326,31.54447831,176.71,176.65,19.813]
[1739817336616,30.48330578,176.71,176.65,19.813]
[1739817336790,30.54630578,176.72,176.65,50.29630578]
[1739817337211,30.54630578,176.72,176.65,78.60080578]
[1739817337511,0.063,176.72,176.66,30.48330578]
[1739817338212,1.12408172,176.72,176.65,78.60080578]
[1739817338416,31.6073875,176.72,176.65,78.60080578]
[1739817339013,30.48330578,176.71,176.65,48.1175]
[1739817339318,30.54630578,176.72,176.65,78.60080578]
[1739817340527,0.063,176.72,176.65,78.60080578]
[1739817345594,0.063,176.72,176.66,30.48330578]
[1739817346624,0.063,176.72,176.65,48.1175]
[1739817346807,30.54630578,176.72,176.65,48.1175]
[1739817347006,0.063,176.72,176.66,30.48330578]
[1739817347612,0.063,176.72,176.67,50.29410578]
[1739817348097,0.063,176.72,176.67,19.8108]
[1739817348600,30.48330578,176.71,176.67,19.8108]
[1739817348800,30.48330578,176.69,176.67,19.8108]
[1739817349197,30.48330578,176.7,176.67,19.8108]
[1739817349721,30.48330578,176.7,176.64,19.8142]
[1739817349890,30.48330578,176.71,176.64,50.29750578]
[1739817350097,30.48330578,176.69,176.64,19.8142]
[1739817350315,30.48330578,176.7,176.64,19.8142]
[1739817350522,30.48330578,176.71,176.64,50.29750578]
[1739817350905,0.063,176.72,176.66,30.48330578]
[1739817351321,0.063,176.72,176.68,30.48330578]
[1739817351522,0.063,176.72,176.67,30.48330578]
[1739817352024,0.063,176.72,176.68,19.8097]
[1739817356406,0.063,176.72,176.69,30.48330578]
[1739817356800,0.063,176.72,176.68,19.8097]
[1739817357506,0.063,176.72,176.68,50.29300578]
[1739817358725,0.063,176.72,176.68,38.85640191]
[1739817358907,0.063,176.72,176.68,19.8097]
[1739817359801,19.10970191,176.72,176.68,19.8097]
[1739817360335,19.04670191,176.71,176.66,5.6605]
[1739817360632,19.10970191,176.72,176.66,19.8119]
[1739817361032,0.063,176.72,176.66,38.85860191]
[1739817361539,0.063,176.72,176.67,19.04670191]
[1739817361947,0.063,176.72,176.68,19.04670191]
[1739817362608,0.063,176.72,176.69,19.04670191]
[1739817362907,0.063,176.72,176.68,33.19580191]